[Event "22nd Rochefort Festival Masters 2024"]
[Site "Rochefort"]
[Date "2024.02.18"]
[Round "1.1"]
[White "Vigneau-Zorraquino, Cioran"]
[Black "Romanov, Evgeny"]
[Result "0-1"]
[ECO "B43"]
[WhiteElo "2051"]
[BlackElo "2578"]
[Annotator "TA"]
[PlyCount "77"]
[EventDate "2024.02.18"]
[EventType "swiss"]
[EventCountry "FRA"]
[SourceTitle "playchess.com"]
[Source "ChessBase"]
[SourceQuality "1"]
[TimeControl "40/5400+30:1800+30"]

{[%evp 15,77,33,26,16,33,22,30,16,13,15,21,31,37,9,15,-14,0,0,14,15,21,20,13,24,16,0,2,0,0,0,0,-4,-4,-20,0,-40,-45,-61,-18,-14,-17,-13,-11,-11,-14,-8,-8,-8,-15,-11,-8,-50,-33,-102,-96,-97,-98,-87,-54,-29984,-29985,-29985,-6659,-6659]} 1. e4 {[%emt 0:00:03]} c5 {[%emt 0:02:28]} 2. Nf3 {[%emt 0:00:03]} e6 {[%emt 0:00:13]} 3. d4 {[%emt 0:00:02]} cxd4 {[%emt 0:00:07]} 4. Nxd4 {[%emt 0:00:03]} a6 {[%emt 0:00:09]} 5. Nc3 {[%emt 0:00:02]} b5 {[%emt 0:00:23]} 6. Bd3 {[%emt 0:00:03]} Bb7 {[%emt 0:00:20]} 7. O-O {[%emt 0:00:10]} Nc6 {[%emt 0:00:11]} 8. Nxc6 {[%emt 0:00:04]} Bxc6 {[%emt 0:00:08]} 9. a3 {[%emt 0:00:33]} Qb8 {[%emt 0:01:30]} 10. f4 {[%emt 0:05:40]} Qb7 {[%emt 0:06:47]} 11. Qe2 {[%emt 0:01:01] White has an edge.} Bc5+ {[%emt 0:01:21]} 12. Be3 {[%emt 0:02:15]} Bxe3+ {[%emt 0:14:49]} 13. Qxe3 {[%emt 0:00:04]} Ne7 {[%emt 0:00:26]} 14. Rae1 {[%emt 0:02:07]} O-O {[%emt 0:01:58]} 15. Qh3 {[%emt 0:03:01]} f6 {[%emt 0:03:17]} 16. Nd5 {[%emt 0:03:57]} Rf7 {[%emt 0:04:06]} (16... exd5 17. exd5 Qb6+ 18. Kh1 $18) 17. Nb4 {[%emt 0:02:44]} Qb6+ {[%emt 0:03:21]} 18. Qe3 {[%emt 0:04:50]} Qxe3+ {[%emt 0:00:18]} 19. Rxe3 {[%emt 0:00:03]} Bb7 {[%emt 0:00:06]} 20. c4 {[%emt 0:00:38]} a5 {[%emt 0:07:13]} 21. Na2 {[%emt 0:05:53]} bxc4 {[%emt 0:01:03]} 22. Bxc4 {[%emt 0:00:03]} f5 {[%emt 0:00:24]} 23. e5 {[%emt 0:05:27] [#]} g5 $1 {[%emt 0:02:29]} 24. fxg5 {[%emt 0:02:55]} (24. Rg3 Rg7) 24... Rc8 {[%emt 0:04:48]} 25. b3 {[%emt 0:21:49]} Rg7 {[%emt 0:00:52]} 26. Rd1 {[%emt 0:07:01]} Nd5 {[%emt 0:02:10]} ({Much weaker is} 26... Rxg5 27. Rxd7 Rxg2+ 28. Kf1 $11) 27. Bxd5 {[%emt 0:03:55]} Bxd5 {[%emt 0:00:10]} 28. Nc3 {[%emt 0:00:10]} Bxb3 {[%emt 0:02:08][%cal Bd5b3,Bb3c2,Bc2e4][%mdl 32]} 29. Rd4 {[%emt 0:00:18]} Rxg5 {[%emt 0:11:45]} 30. Rxd7 {[%emt 0:00:04]} f4 {[%emt 0:00:59]} 31. Rh3 {[%emt 0:00:07]} Bc2 {[%emt 0:01:19] Against Ne4} 32. Ne2 {[%emt 0:00:03]} Rf8 {[%emt 0:08:15][%cal Of4f3] Threatens to win with ...f3!} 33. Nd4 {[%emt 0:01:22]} Be4 {[%emt 0:00:50]} 34. g3 {[%emt 0:06:34]} ({White should play} 34. Nf3 $15 Rg4 35. Rd4) 34... f3 $36 {[%emt 0:04:35][%mdl 2048] ( -> ...f2+). Black is in control.} 35. Kf2 {[%emt 0:00:17]} Rxe5 {[%emt 0:00:24] Hoping for ...Rb8.} 36. g4 {[%emt 0:01:00][%cal Oh3h6]} Rc5 {[%emt 0:03:50] ...Rc3 would now be deadly.} 37. Nxe6 $2 {[%emt 0:06:05][%mdl 8192] [#]} (37. Rg7+ $15 Kh8 38. Rd7) 37... Rc2+ {[%emt 0:00:18]} 38. Ke3 {[%emt 0:00:02]} Re2+ {[%emt 0:00:52]} 39. Kd4 {[%emt 0:19:32] Weighted Error Value: White=0.32/Black=0.07 (flawless) .  Loses game:     	White=1     	---        Mistake:       	White=1     	---        Inaccurate:     	White=4     	Black=2      OK:         	White=9     	Black=18     Best:        	White=1     	Black=1} 0-1

[Event "22nd Rochefort Festival Masters 2024"]
[Site "Rochefort"]
[Date "2024.02.18"]
[Round "1.2"]
[White "Laurent-Paoli, Pierre"]
[Black "Serrier, Mathis"]
[Result "1-0"]
[ECO "A67"]
[WhiteElo "2529"]
[BlackElo "2013"]
[Annotator "TA"]
[PlyCount "73"]
[EventDate "2024.02.18"]
[EventType "swiss"]
[EventCountry "FRA"]
[SourceTitle "playchess.com"]
[Source "ChessBase"]
[SourceQuality "1"]
[TimeControl "40/5400+30:1800+30"]

{[%evp 18,73,47,40,37,51,95,31,16,0,41,43,58,56,131,64,85,-5,22,-97,152,146,154,137,154,152,142,138,122,-150,-182,-168,-187,-148,-177,-243,586,569,615,627,1169,1241,1227,1235,1070,1058,1256,1242,1450,1575,1575,1473,1142,1031,807,792,756,743]} 1. d4 {[%emt 0:00:52]} Nf6 {[%emt 0:00:06]} 2. c4 {[%emt 0:00:35]} c5 {[%emt 0:00:06]} 3. d5 {[%emt 0:00:34]} e6 {[%emt 0:00:05]} 4. Nc3 {[%emt 0:00:22]} exd5 {[%emt 0:00:08]} 5. cxd5 {[%emt 0:00:05]} d6 {[%emt 0:00:05]} 6. e4 {[%emt 0:06:03]} g6 {[%emt 0:00:25]} 7. f4 {[%emt 0:00:06]} Bg7 {[%emt 0:00:06]} 8. Bb5+ {[%emt 0:00:03]} Nfd7 {[%emt 0:00:07]} 9. Be2 {[%emt 0:04:22]} O-O {[%emt 0:02:46]} 10. Nf3 {[%emt 0:00:20]} Re8 {[%emt 0:07:04]} 11. O-O {[%emt 0:00:50]} f5 {[%emt 0:13:00] [#]} 12. e5 {[%emt 0:08:20]} dxe5 $14 {[%emt 0:02:48] White is slightly better.} 13. d6 {[%emt 0:00:07] Hoping for Nb5.} e4 {[%emt 0:27:46]} 14. Bc4+ {[%emt 0:04:30]} Kh8 {[%emt 0:01:47]} 15. Ng5 {[%emt 0:00:09]} Bxc3 {[%emt 0:06:49]} ({Better is} 15... Rf8 $14) 16. bxc3 {[%emt 0:28:14]} (16. Nf7+ $16 Kg7 17. Nxd8 Bd4+ 18. Kh1 Rxd8 19. Rb1) 16... Qf6 {[%emt 0:03:03][%cal Oh7h6]} 17. Qe1 {[%emt 0:07:22]} ({White should try} 17. Bf7 $1 $16 {[%cal Rf7e8]} Rf8 18. Bb3) 17... h6 {[%emt 0:05:44] [#]} 18. Be3 {[%emt 0:06:24]} hxg5 $2 {[%emt 0:05:28]} (18... Kg7 $1 $17 {keeps the pressure on.} 19. Nf7 Nb6 (19... Rf8 20. Ne5 $14)) 19. fxg5 $16 {[%emt 0:00:03]} Qg7 {[%emt 0:00:12] aiming for ...Ne5.} 20. Rf4 $1 {[%emt 0:05:15] Threatening mate with Rh4+.} Nf8 {[%emt 0:01:35] ...Be6 would now be deadly.} 21. Rh4+ {[%emt 0:00:06]} Nh7 {[%emt 0:00:06] And now ...Be6 would win.} 22. Bxc5 $40 {[%emt 0:00:05][%mdl 128] White wants a kill. White is much more active. This pair of bishops is nice.} Nc6 {[%emt 0:02:03] [#] White must now prevent ...Re5.} 23. Bd5 $2 {[%emt 0:02:50][%mdl 8192] [#]} (23. Qg3 $1 $16 {is necessary to keep the advantage.}) 23... Re5 $17 {[%emt 0:01:33]} 24. Rd1 {[%emt 0:00:47]} Be6 {[%emt 0:02:22]} 25. c4 {[%emt 0:00:07]} Kg8 {[%emt 0:05:51]} 26. Be3 {[%emt 0:00:06]} (26. Qg3 $142) 26... Qf7 $4 {[%emt 0:01:08][%mdl 8192]} (26... Bxd5 $19 27. cxd5 Nd8) 27. Bxc6 $18 {[%emt 0:02:08] White is clearly winning.} Bxc4 {[%emt 0:02:58] Black is weak on the dark squares} 28. Qc3 {[%emt 0:04:30]} Qe6 {[%emt 0:06:17] [#]} 29. Bd7 {[%emt 0:01:15][%mdl 512]} Qxd7 {[%emt 0:00:41]} 30. Qxe5 {[%emt 0:00:05] White threatens Bd4 and mate.} Re8 {[%emt 0:00:24]} 31. Qd4 {[%emt 0:00:17]} b5 {[%emt 0:00:23]} 32. Bc1 {[%emt 0:03:00][%cal Be3c1,Bc1b2,Bb2f6][%mdl 32] Intending Bb2 and mate.} Qg7 {[%emt 0:00:53]} 33. Qxg7+ {[%emt 0:00:37]} Kxg7 {[%emt 0:00:04]} 34. d7 {[%emt 0:00:28]} Rd8 {[%emt 0:00:09]} 35. Bb2+ {[%emt 0:00:02]} Kg8 {[%emt 0:00:10] [#]} 36. Rxh7 $1 {[%emt 0:00:07][%mdl 512]} Kxh7 {[%emt 0:00:08]} 37. Bf6 {[%emt 0:00:03] Weighted Error Value: White=0.39/Black=0.56.  Missed win:     	---       	Black=1      Mistake:       	White=6     	Black=2      Inaccurate:     	---       	Black=4      OK:         	White=4     	Black=4      Best:        	White=3     	Black=6      Strong:       	White=1     	---} 1-0

[Event "22nd Rochefort Festival Masters 2024"]
[Site "Rochefort"]
[Date "2024.02.18"]
[Round "1.3"]
[White "Darrigrand, Mathieu"]
[Black "Sivuk, Vitaly"]
[Result "0-1"]
[ECO "E20"]
[WhiteElo "2008"]
[BlackElo "2502"]
[Annotator "RC"]
[PlyCount "62"]
[EventDate "2024.02.18"]
[EventType "swiss"]
[EventCountry "FRA"]
[SourceTitle "playchess.com"]
[Source "ChessBase"]
[SourceQuality "1"]
[TimeControl "40/5400+30:1800+30"]

1. d4 {[%emt 0:00:04]} Nf6 {[%emt 0:14:09]} 2. c4 {[%emt 0:00:06]} e6 {[%emt 0:00:07]} 3. Nc3 {[%emt 0:00:07]} Bb4 {[%emt 0:00:08]} 4. f3 {[%emt 0:00:08]} c5 {[%emt 0:00:30]} 5. d5 {[%emt 0:00:07]} d6 {[%emt 0:00:08]} 6. e4 {[%emt 0:00:32]} b5 {[%emt 0:00:11]} 7. Bd3 {[%emt 0:08:40]} O-O {[%emt 0:04:18]} 8. Nge2 {[%emt 0:02:43]} bxc4 {[%emt 0:01:09]} 9. Bxc4 {[%emt 0:00:39]} Nxd5 {[%emt 0:02:44]} 10. Bxd5 {[%emt 0:02:12]} exd5 {[%emt 0:00:07]} 11. exd5 {[%emt 0:09:52]} Ba6 {[%emt 0:07:10]} 12. O-O {[%emt 0:02:43]} Bxc3 {[%emt 0:00:34]} 13. bxc3 {[%emt 0:07:15]} Re8 {[%emt 0:02:15]} 14. Re1 {[%emt 0:02:37]} Qe7 {[%emt 0:00:34]} 15. Kf2 {[%emt 0:02:14]} Nd7 {[%emt 0:00:58]} 16. Bf4 {[%emt 0:09:02]} Ne5 {[%emt 0:04:12]} 17. Bxe5 {[%emt 0:10:59]} Qxe5 {[%emt 0:00:15]} 18. Qd2 {[%emt 0:03:56]} Qxh2 {[%emt 0:01:31]} 19. Ng3 {[%emt 0:02:00]} Qh4 {[%emt 0:01:15]} 20. Rxe8+ {[%emt 0:04:06]} Rxe8 {[%emt 0:00:07]} 21. Re1 {[%emt 0:00:09]} Rxe1 {[%emt 0:13:16]} 22. Qxe1 {[%emt 0:00:07]} Bb5 {[%emt 0:00:08]} 23. Qb1 {[%emt 0:07:57]} a6 {[%emt 0:00:56]} 24. Qf5 {[%emt 0:01:21]} Kf8 {[%emt 0:04:42]} 25. Qc8+ {[%emt 0:01:47]} Ke7 {[%emt 0:00:17]} 26. Qb7+ {[%emt 0:02:02]} Bd7 {[%emt 0:00:56]} 27. Qxa6 {[%emt 0:01:18]} f5 {[%emt 0:00:06]} 28. Qd3 {[%emt 0:06:03]} f4 {[%emt 0:00:49]} 29. Qe4+ {[%emt 0:00:09]} Kd8 {[%emt 0:00:38]} 30. Kg1 {[%emt 0:00:36]} Qxg3 {[%emt 0:00:09]} 31. Qxh7 {[%emt 0:00:05]} Qe1+ {[%emt 0:00:18]} 0-1

[Event "22nd Rochefort Festival Masters 2024"]
[Site "Rochefort"]
[Date "2024.02.18"]
[Round "1.4"]
[White "Roshka, Yevgeniy"]
[Black "Charles, Simon"]
[Result "1-0"]
[ECO "A61"]
[WhiteElo "2474"]
[BlackElo "2017"]
[Annotator "TA"]
[PlyCount "55"]
[EventDate "2024.02.18"]
[EventType "swiss"]
[EventCountry "FRA"]
[SourceTitle "playchess.com"]
[Source "ChessBase"]
[SourceQuality "1"]
[TimeControl "40/5400+30:1800+30"]

{[%evp 17,55,22,16,3,28,37,49,37,65,60,232,183,270,271,269,256,410,424,416,406,378,387,375,376,402,415,409,403,443,437,439,422,423,419,468,402,531,493,483,481]} 1. d4 {[%emt 0:14:28]} Nf6 {[%emt 0:00:59]} 2. c4 {[%emt 0:00:06]} c5 {[%emt 0:00:05]} 3. d5 {[%emt 0:00:31]} e6 {[%emt 0:00:07]} 4. Nc3 {[%emt 0:00:22]} exd5 {[%emt 0:00:08]} 5. cxd5 {[%emt 0:00:04]} d6 {[%emt 0:00:08]} 6. Nf3 {[%emt 0:00:21][%cal Bg1f3,Bf3d2,Bd2c4][%mdl 32]} g6 {[%emt 0:00:20][%cal Bg7g6,Bg6g5][%mdl 32]} 7. Nd2 {[%emt 0:00:05]} Bg7 {[%emt 0:00:09]} 8. Nc4 {[%emt 0:00:04]} O-O {[%emt 0:01:34]} 9. Bf4 {[%emt 0:00:05]} Ne8 {[%emt 0:00:08]} 10. e3 {[%emt 0:00:29]} g5 {[%emt 0:06:28]} 11. Bg3 {[%emt 0:00:09]} f5 {[%emt 0:03:43]} 12. Qd2 {[%emt 0:02:58] White is slightly better.} a6 {[%emt 0:04:07] [#] Hoping for ...b5.} 13. a4 {[%emt 0:00:29] White is more active.} Qf6 $2 {[%emt 0:01:10]} (13... Nd7 $14) 14. h4 {[%emt 0:00:42] aiming for hxg5.} Nd7 {[%emt 0:03:20]} (14... g4 $142 15. Nb6 Nc7 16. Nxa8 Nxa8) 15. hxg5 $18 {[%emt 0:00:08]} Qxg5 {[%emt 0:02:45]} 16. Nxd6 {[%emt 0:01:07]} (16. Bxd6 $6 Nxd6 17. Nxd6 f4 $18) 16... f4 $2 {[%emt 0:03:18] [#]} (16... Be5) 17. Bxf4 {[%emt 0:02:22]} ({And not} 17. exf4 Qe7+ 18. Nde4 Bxc3 19. Qxc3 Qxe4+ 20. Be2 Ndf6 $17 (20... Qxg2 $2 {too greedy.} 21. Bf3 $18) (20... Qxd5 $2 21. Bc4 $18)) 17... Rxf4 {[%emt 0:01:03]} 18. Nxe8 {[%emt 0:00:07]} ({Weaker is} 18. exf4 Qe7+ 19. Nde4 Bxc3 20. bxc3 Qxe4+ 21. Qe2 Qg6 $16) 18... Rb4 {[%emt 0:04:01]} 19. Rh3 {[%emt 0:15:39]} Nf6 {[%emt 0:08:19]} 20. Rg3 {[%emt 0:00:30]} Rg4 {[%emt 0:01:04]} 21. Rxg4 {[%emt 0:01:34]} Bxg4 {[%emt 0:02:18]} 22. Nxg7 {[%emt 0:00:06]} Kxg7 {[%emt 0:01:33]} 23. f3 {[%emt 0:02:25]} Bd7 {[%emt 0:02:18]} 24. e4 {[%emt 0:00:07]} Qg3+ {[%emt 0:01:12]} 25. Qf2 {[%emt 0:00:25]} Qf4 {[%emt 0:01:40]} 26. Ne2 {[%emt 0:00:38]} Qh6 {[%emt 0:01:00]} 27. Qg3+ {[%emt 0:00:34]} Kf7 {[%emt 0:04:11]} 28. Qf4 {[%emt 0:02:45] Black did not feel at home in the position after the opening.   Weighted Error Value: White=0.11 (very precise) /Black=0.47.  Loses game:     	---       	Black=1      Mistake:       	---       	Black=2      Inaccurate:     	---       	Black=2      OK:         	White=9     	Black=4      Best:        	White=4     	Black=1} 1-0

[Event "22nd Rochefort Festival Masters 2024"]
[Site "Rochefort"]
[Date "2024.02.18"]
[Round "1.5"]
[White "Belluire, Beatrice"]
[Black "Droin, Augustin"]
[Result "1/2-1/2"]
[ECO "B51"]
[WhiteElo "2012"]
[BlackElo "2471"]
[Annotator "TA"]
[PlyCount "127"]
[EventDate "2024.02.18"]
[EventType "swiss"]
[EventCountry "FRA"]
[SourceTitle "playchess.com"]
[Source "ChessBase"]
[SourceQuality "1"]
[TimeControl "40/5400+30:1800+30"]

{[%evp 32,127,15,11,12,-7,-7,-20,-6,-10,-10,-58,0,-24,-24,-37,-15,0,0,-16,-26,-67,-45,-59,28,41,26,31,107,40,40,36,79,31,22,0,49,37,97,0,0,0,0,0,0,0,0,0,0,0,0,0,0,0,0,0,2,0,8,8,8,8,8,8,8,8,8,8,8,8,8,8,8,8,8,8,8,8,8,8,8,8,8,8,8,8,8,8,8,8,8,8,8,8,8,8,8,8]} 1. e4 {[%emt 0:00:02]} c5 {[%emt 0:00:04]} 2. Nf3 {[%emt 0:00:10]} d6 {[%emt 0:00:04]} 3. Bb5+ {[%emt 0:00:09]} Nd7 {[%emt 0:00:05]} 4. a4 {[%emt 0:00:16]} Ngf6 {[%emt 0:00:12]} 5. Nc3 {[%emt 0:00:13]} g6 {[%emt 0:00:15]} 6. a5 {[%emt 0:01:50] B51: Sicilian: Moscow Variation (3 Bb5+) without 3...Bd7.} Bg7 {[%emt 0:00:26]} 7. O-O {[%emt 0:00:25]} a6 {[%emt 0:00:13]} 8. Be2 {[%emt 0:03:12]} O-O {[%emt 0:00:21]} 9. d3 {[%emt 0:01:21]} b5 {[%emt 0:05:42]} 10. axb6 {[%emt 0:00:12]} Bb7 {[%emt 0:00:05]} 11. h3 {[%emt 0:09:26]} Qxb6 {[%emt 0:00:44]} 12. Be3 $146 {[%emt 0:07:21]} ({Predecessor:} 12. Nd2 Ne5 13. Kh1 Qc7 14. f4 Nc6 15. Qe1 Nd4 16. Bd1 d5 17. e5 Nd7 18. Nf3 Nxf3 19. Bxf3 {½-½ Grebnev,A (2483)-Murzin,V (2577) RUS-ch U20 Moscow 2023 (2)}) 12... d5 {[%emt 0:19:50]} 13. exd5 {[%emt 0:10:47]} Nxd5 {[%emt 0:00:05]} 14. Nxd5 {[%emt 0:00:42]} Bxd5 {[%emt 0:00:07]} 15. d4 {[%emt 0:02:24]} c4 {[%emt 0:04:37]} 16. Qd2 {[%emt 0:08:46]} Rfb8 {[%emt 0:06:47]} (16... Qxb2 $2 {loses.} 17. Rfb1 $18) 17. Qa5 {[%emt 0:04:21]} Qc6 {[%emt 0:05:55]} 18. Qc3 {[%emt 0:08:27]} e6 {[%emt 0:02:32]} 19. Rfb1 {[%emt 0:02:17]} Bf8 {[%emt 0:00:15]} 20. Bf4 {[%emt 0:03:34]} Rb6 {[%emt 0:01:48]} 21. Qe3 {[%emt 0:01:21]} (21. Nd2 $11 {should be considered.}) 21... Ra7 {[%emt 0:04:21]} (21... a5 $15) 22. Bh6 {[%emt 0:02:40]} Bxh6 {[%emt 0:06:59]} 23. Qxh6 {[%emt 0:00:02]} Rab7 {[%emt 0:00:05]} 24. Qc1 {[%emt 0:03:39]} Rb8 {[%emt 0:03:11]} 25. Ra3 {[%emt 0:02:41]} Qb7 {[%emt 0:03:14]} 26. Rc3 {[%emt 0:04:13]} Rb4 {[%emt 0:02:31]} (26... Rxb2 {simplifies} 27. Qxb2 Qxb2 28. Rxb2 Rxb2 29. Bxc4 Bxf3 30. gxf3 a5) 27. Bf1 {[%emt 0:01:40]} Nb6 {[%emt 0:01:36]} (27... Rxb2 $15 28. Rxb2 Qxb2 29. Qxb2 Rxb2) 28. Ne5 $11 {[%emt 0:03:49]} f6 {[%emt 0:09:13]} 29. Ng4 {[%emt 0:00:42]} f5 {[%emt 0:01:23]} ({Black should try} 29... Nd7 $14) 30. Nf6+ {[%emt 0:03:14]} (30. Ne5 $16) 30... Kg7 $14 {[%emt 0:00:37]} 31. Nxd5 {[%emt 0:00:07]} Qxd5 {[%emt 0:00:44]} 32. Qg5 {[%emt 0:04:01]} ({White should play} 32. Ra3 $16) 32... Qd6 $14 {[%emt 0:03:07]} 33. h4 {[%emt 0:01:47]} h6 {[%emt 0:01:55]} (33... Nd5 $11 34. Rxc4 Rxb2 35. Rxb2 Rxb2) 34. Qd2 {[%emt 0:00:13]} e5 {[%emt 0:01:07] [#]} ({Better is} 34... Nd5 $14) 35. d5 {[%emt 0:02:36]} (35. h5 $1 $16) 35... Qxd5 $11 {[%emt 0:07:12]} 36. Qxd5 {[%emt 0:00:57]} Nxd5 {[%emt 0:00:02]} 37. Rxc4 {[%emt 0:01:15]} Rxc4 {[%emt 0:00:02]} 38. Bxc4 {[%emt 0:00:01]} Nc3 {[%emt 0:00:01]} 39. Ra1 {[%emt 0:08:08]} Rxb2 {[%emt 0:00:05]} 40. Rxa6 {[%emt 0:00:07]} Rxc2 {[%emt 0:00:57]} 41. Ra7+ {[%emt 0:31:20]} Kf8 {[%emt 0:30:06]} 42. h5 {[%emt 0:00:00]} Rc1+ {[%emt 0:00:00]} 43. Kh2 {[%emt 0:00:00]} Ne4 {[%emt 0:00:00]} 44. Ba2 {[%emt 0:00:00]} gxh5 {[%emt 0:00:00]} 45. Rf7+ {[%emt 0:00:00]} Ke8 {[%emt 0:00:00]} 46. Rxf5 {[%emt 0:00:00]} Rc5 {[%emt 0:00:00]} 47. f3 {[%emt 0:00:00]} ({Of course not} 47. Rxh5 Nxf2 48. Kg3 Ne4+ 49. Kh4 Nd6) 47... Ng5 {[%emt 0:00:00]} 48. f4 {[%emt 0:00:00]} Ne4 {[%emt 0:00:00]} 49. Rxe5+ {[%emt 0:00:00]} Rxe5 {[%emt 0:00:00]} 50. fxe5 {[%emt 0:00:00]} Nf2 {[%emt 0:00:00]} 51. Kg3 {[%emt 0:00:00]} Nd3 {[%emt 0:00:00]} 52. Kh4 {[%emt 0:00:00]} Nxe5 {[%emt 0:00:00]} 53. Kxh5 {[%emt 0:00:00]} Ke7 {[%emt 0:00:00]} 54. Kxh6 {[%emt 0:00:00]} Kf6 {[%emt 0:00:00]} 55. Bb1 {[%emt 0:00:00]} Nf7+ {[%emt 0:00:00]} 56. Kh5 {[%emt 0:00:00]} Ng5 {[%emt 0:00:00]} 57. Bc2 {[%emt 0:00:00]} Ne6 {[%emt 0:00:00]} 58. g3 {[%emt 0:00:00]} Ng5 {[%emt 0:00:00]} 59. g4 {[%emt 0:00:00]} Nf3 {[%emt 0:00:00]} 60. Be4 {[%emt 0:00:00]} Ng5 {[%emt 0:00:00]} 61. Bd5 {[%emt 0:00:01]} Nh3 {[%emt 0:00:00]} 62. Kh4 {[%emt 0:00:35]} Ng5 {[%emt 0:00:00]} 63. Bc6 {[%emt 0:00:28]} Nf7 {[%emt 0:00:00]} 64. Bb5 {[%emt 0:00:52]} 1/2-1/2